fUSD/lending_fUSD_20241216
["ID","MTS","AMOUNT","RATE_DAILY","PERIOD"]
[345621235,1734391856002,-4286.7107,0.00025,2]
[345621236,1734391856014,-6553.31844,0.00025,2]
[345621237,1734391856026,-5703.00246,0.00025,2]
[345621238,1734391856038,-21173.14968406,0.00025,2]
[345621239,1734391856086,-77717.28188825,0.00025,2]
[345621240,1734391856285,-427.67143245,0.00024657,4]
[345621241,1734391856581,-1047.12856755,0.00024657,4]
[345621242,1734391856591,-1474.8,0.00024657,4]
[345621243,1734391856600,-1474.8,0.00024657,4]
[345621244,1734391856609,-310.9206763,0.00024657,4]
[345621245,1734391856631,-500.0,0.00024624,2]
[345621246,1734391856640,-189.0793237,0.00024657,4]
[345621247,1734391856650,-500.0,0.00024657,4]
[345621248,1734391856659,-207.88260534,0.00024657,4]
[345621249,1734391856671,-292.11739466,0.00024657,4]
[345621250,1734391856680,-500.0,0.00024657,4]
[345621251,1734391856689,-500.0,0.00024657,4]
[345621252,1734391856699,-294.44374634,0.00024657,4]
[345621253,1734391856784,-500.0,0.00024624,2]
[345621254,1734391856793,-500.0,0.00024624,2]
[345621255,1734391856802,-319.64966839,0.00024624,2]
[345621256,1734391856812,-500.0,0.00024624,2]
[345621257,1734391856823,-500.0,0.00024624,2]
[345621258,1734391856833,-500.0,0.00024624,2]
[345621259,1734391856842,-205.55625366,0.00024657,4]
[345621260,1734391856851,-1474.8,0.00024664,4]
[345621261,1734391856861,-178.4172085,0.00024664,4]
[345621262,1734391856870,-156.22572449,0.00024796,2]
[345621263,1734391856880,-721.75169856,0.00024799,4]
[345621265,1734392119193,162.13,0.00013699,2]
[345621267,1734392444050,43138.335301,0.0001,2]
[345621268,1734392654231,153.27,0.00010137,2]
[345621270,1734392744218,450.0,0.00013,2]
[345621271,1734392745132,500.0,0.00015,2]
[345621272,1734392799138,-171.97155051,0.00018272,2]
[345621273,1734392832248,-8.58844949,0.00018272,2]
[345621274,1734392832270,-169.2,0.00019062,2]
[345621275,1734392832292,-151.0,0.0002052,2]
[345621276,1734392832314,-1000.31,0.00020883,2]
[345621277,1734392832337,-741.68,0.00022263,2]
[345621278,1734392832358,-1000.0,0.0002255,2]
[345621279,1734392832381,-557.09,0.00022586,2]
[345621280,1734392832403,-168.58,0.00022603,2]
[345621281,1734392832423,-200.0,0.00022629,2]
[345621282,1734392832445,-250.0,0.00022737,2]
[345621283,1734392832467,-150.0,0.00022795,2]
[345621284,1734392832489,-153.27,0.00022822,2]
[345621285,1734392832511,-160.53,0.00022846,2]
[345621286,1734392832533,-261.32,0.00022869,2]
[345621287,1734392832561,-403.74,0.00022916,2]
[345621288,1734392832584,-759.27,0.00022951,2]
[345621289,1734392832605,-1522.94,0.00023137,2]
[345621290,1734392832627,-1000.31,0.00023147,2]
[345621291,1734392832649,-400.78,0.00023198,2]
[345621292,1734392832671,-321.31,0.0002344,2]
[345621293,1734392832692,-6769.928,0.00023575,2]
[345621294,1734392832714,-1266.7947,0.00023575,2]
[345621295,1734392832736,-1033.84409036,0.00023661,2]
[345621296,1734392832758,-150.0,0.00023674,2]
[345621297,1734392832780,-759.34,0.00023674,2]
[345621298,1734392832802,-756.52,0.00023674,2]
[345621299,1734392832824,-744.61,0.00023675,2]
[345621300,1734392832846,-743.5,0.00023675,2]
[345621301,1734392832867,-23522.59142737,0.00023675,2]
[345621302,1734392848147,-2404.04037821,0.00023675,2]
[345621303,1734392945106,-613.0735541,0.00021506,2]
[345621304,1734392945128,-150.0,0.00021506,2]
[345621305,1734392976807,162.13,0.00013699,2]
[345621308,1734393031926,-400.0,0.00022869,2]
[345621309,1734393032023,-633.91785618,0.00022869,2]
[345621310,1734393032036,-204.28214382,0.00022869,2]
[345621311,1734393032046,-751.84,0.00022869,2]
[345621312,1734393032056,-281.91785618,0.00022869,2]
[345621313,1734393032068,-472.52214382,0.00022869,2]
[345621314,1734393032078,-737.07,0.00022869,2]
[345621315,1734393032088,-251.70557029,0.00022869,2]
[345621316,1734393032100,-350.8690286,0.00022869,2]
[345621317,1734393032111,-133.07540111,0.00022869,2]
[345621318,1734393032121,-742.5,0.00022869,2]
[345621319,1734393032131,-250.0,0.00023037,2]
[345621320,1734393032140,-548.95,0.00023155,2]
[345621321,1734393032149,-333.07459889,0.00023156,2]
[345621322,1734393032161,-1139.44999996,0.00023156,2]
[345621323,1734393032174,-5265.0,0.00023156,2]
[345621324,1734393032187,-366.40999637,0.00023156,2]
[345621325,1734393032198,-1089.17684165,0.00023156,2]
[345621326,1734393032215,-15706.88856313,0.00023156,2]
[345621327,1734393032225,-500.0,0.00023158,2]
[345621328,1734393032235,-4735.11143687,0.00023675,2]
[345621329,1734393032255,-35902.9567254,0.00023675,2]
[345621330,1734393032267,-5952.39891665,0.00023675,2]
[345621331,1734393032365,-27571.3354155,0.00023675,2]
[345621332,1734393032374,-755.96,0.00023675,2]
[345621333,1734393032384,-739.24,0.00023675,2]
[345621334,1734393032393,-168.58,0.00023718,2]
[345621335,1734393032402,-930.45968136,0.00023727,2]
[345621336,1734393032415,-455.892,0.0002375,2]
[345621337,1734393032425,-200.0,0.00023756,2]
[345621338,1734393032434,-50423.0496,0.00023761,2]
[345621339,1734393032444,-250.0,0.00023827,2]
[345621340,1734393032453,-250.0,0.00023827,2]
[345621341,1734393032463,-930.45968132,0.00023857,2]
[345621342,1734393032472,-401.67,0.00023914,2]
[345621343,1734393032482,-763.77,0.00023964,2]
[345621344,1734393032492,-748.14,0.00023964,2]
[345621345,1734393032501,-930.45968132,0.00023988,2]
[345621346,1734393032511,-1966.05440804,0.00023999,2]
[345621347,1734393032520,-5001.34826555,0.00024,30]
[345621348,1734393032530,-49743.2,0.00024,120]
[345621349,1734393032539,-50000.0,0.00024,120]
[345621350,1734393032548,-38385.28,0.00024014,5]
[345621351,1734393032557,-761.88,0.00024014,2]
[345621352,1734393032570,-752.71,0.00024014,2]
[345621353,1734393032580,-160.3,0.00024046,30]
[345621354,1734393032591,-1538.21,0.00024055,2]
[345621355,1734393032600,-403.74,0.00024062,2]
[345621356,1734393032611,-1665.035,0.0002409,5]
[345621357,1734393032620,-189.802,0.0002409,5]
[345621358,1734393032630,-930.45968132,0.00024118,2]
[345621359,1734393032641,-9999.99,0.00024174,2]
[345621360,1734393032650,-150.99,0.00024174,2]
[345621361,1734393032660,-999.99,0.00024174,2]
[345621362,1734393032669,-9999.99,0.00024174,2]
[345621363,1734393032678,-6528.1,0.00024174,2]
[345621364,1734393032688,-299.99,0.00024174,7]
[345621365,1734393032697,-614.3,0.00024174,2]
[345621367,1734393032706,-930.45968132,0.00024248,2]
[345621369,1734393032715,-1129.45934324,0.00024303,2]
[345621370,1734393032725,-321.31,0.00024307,2]
[345621372,1734393032735,-930.45968132,0.00024379,2]
[345621374,1734393032744,-162.60017404,0.00024387,2]
[345621376,1734393032753,-1500.0,0.000244,2]
[345621378,1734393032763,-13643.0,0.00024417,2]
[345621380,1734393032772,-162.60017401,0.00024473,2]
[345621382,1734393032781,-153.0,0.00024479,2]
[345621384,1734393032791,-35567.0069758,0.000245,2]
[345621386,1734393032801,-2110.0,0.000245,2]
[345621387,1734393032810,-930.45968132,0.00024509,2]
[345621389,1734393032821,-908.0995,0.00024557,2]
[345621391,1734393032830,-162.60017401,0.00024558,2]
[345621392,1734393032841,-500.0,0.00024624,2]
[345621393,1734393032850,-625.30789355,0.00024624,2]
[345621394,1734393032860,-110212.54895959,0.00024625,2]
[345621395,1734393032869,-930.45968132,0.00024639,2]
[345621396,1734393032879,-162.60017401,0.00024644,2]
[345621397,1734393032889,-336.61925538,0.00024647,2]
[345621398,1734393032899,-500.0,0.00024657,4]
[345621399,1734393032909,-351.69514907,0.00024657,4]
[345621400,1734393032918,-522.40376933,0.00024657,4]
[345621401,1734393032927,-500.0,0.00024657,4]
[345621402,1734393032936,-500.0,0.00024657,4]
[345621403,1734393032946,-500.0,0.00024657,4]
[345621404,1734393032956,-500.0,0.00024657,4]
[345621405,1734393032966,-500.0,0.00024657,4]
[345621406,1734393032975,-500.0,0.00024657,4]
[345621407,1734393032987,-500.0,0.00024657,4]
[345621408,1734393032998,-500.0,0.00024657,4]
[345621409,1734393033007,-500.0,0.00024657,4]
[345621410,1734393033017,-500.0,0.00024657,4]
[345621411,1734393033027,-500.0,0.00024657,4]
[345621412,1734393033239,-1000.0,0.00024657,2]
[345621413,1734393033249,-1000.0,0.00024657,2]
[345621414,1734393033258,-1000.0,0.00024657,2]
[345621415,1734393033268,-280.66,0.00024657,4]
[345621416,1734393033277,-503.55719514,0.00024657,4]
[345621417,1734393033286,-501.72966183,0.00024657,4]
[345621418,1734393033295,-500.0,0.00024657,4]
[345621419,1734393033304,-500.0,0.00024657,4]
[345621420,1734393033314,-500.0,0.00024657,4]
[345621421,1734393033324,-500.0,0.00024657,4]
[345621422,1734393033333,-500.0,0.00024657,4]
[345621423,1734393033344,-500.0,0.00024657,4]
[345621424,1734393033354,-500.0,0.00024657,4]
[345621425,1734393033363,-500.0,0.00024657,4]
[345621426,1734393033373,-500.0,0.00024657,4]
[345621427,1734393033382,-500.0,0.00024657,4]
[345621428,1734393033391,-500.0,0.00024657,4]
[345621429,1734393033400,-348.06,0.00024657,4]
[345621430,1734393033409,-500.0,0.00024657,4]
[345621431,1734393033419,-500.0,0.00024657,4]
[345621432,1734393033428,-500.0,0.00024657,4]
[345621433,1734393033438,-500.0,0.00024657,4]
[345621434,1734393033448,-500.0,0.00024657,4]
[345621435,1734393033457,-500.0,0.00024657,4]
[345621436,1734393033466,-500.0,0.00024657,4]
[345621437,1734393033477,-500.0,0.00024657,4]
[345621438,1734393033486,-500.0,0.00024657,4]
[345621439,1734393033495,-500.0,0.00024657,4]
[345621440,1734393033504,-500.0,0.00024657,4]
[345621441,1734393033514,-500.0,0.00024657,4]
[345621442,1734393033523,-266.66363675,0.00024657,4]
[345621443,1734393033532,-516.91422125,0.00024657,4]
[345621444,1734393033541,-500.0,0.00024657,4]
[345621445,1734393033550,-287.19531095,0.00024657,4]
[345621446,1734393033563,-500.0,0.00024657,4]
[345621447,1734393033573,-1432.01,0.00024657,4]
[345621448,1734393033582,-1432.01,0.00024657,4]
[345621449,1734393033596,-500.0,0.00024657,4]
[345621450,1734393033606,-500.0,0.00024657,4]
[345621451,1734393033615,-500.0,0.00024657,4]
[345621452,1734393033625,-500.0,0.00024657,4]
[345621453,1734393033638,-500.0,0.00024657,4]
[345621454,1734393033648,-500.0,0.00024657,4]
[345621455,1734393033658,-500.0,0.00024657,4]
[345621456,1734393033667,-500.0,0.00024657,4]
[345621457,1734393033677,-500.0,0.00024657,4]
[345621458,1734393033686,-500.0,0.00024657,4]
[345621459,1734393033695,-500.0,0.00024657,4]
[345621460,1734393033705,-500.0,0.00024657,4]
[345621461,1734393033718,-500.0,0.00024657,4]
[345621462,1734393033728,-500.0,0.00024657,4]
[345621463,1734393033737,-500.0,0.00024657,4]
[345621464,1734393033746,-500.0,0.00024657,4]
[345621465,1734393033756,-500.0,0.00024657,4]
[345621466,1734393033765,-500.0,0.00024657,4]
[345621467,1734393033775,-500.0,0.00024657,4]
[345621468,1734393033785,-500.0,0.00024657,4]
[345621469,1734393033794,-500.0,0.00024657,4]
[345621470,1734393033803,-500.0,0.00024657,4]
[345621471,1734393033813,-500.0,0.00024657,4]
[345621472,1734393033823,-500.0,0.00024657,4]
[345621473,1734393033832,-500.0,0.00024657,4]
[345621474,1734393033846,-500.0,0.00024657,4]
[345621475,1734393033856,-500.0,0.00024657,4]
[345621476,1734393033865,-500.0,0.00024657,4]
[345621477,1734393033875,-500.0,0.00024657,4]
[345621478,1734393033885,-500.0,0.00024657,4]
[345621479,1734393033895,-500.0,0.00024657,4]
[345621480,1734393033904,-500.0,0.00024657,4]
[345621481,1734393033914,-500.0,0.00024657,4]
[345621482,1734393033924,-500.0,0.00024657,2]
[345621483,1734393033933,-517.21,0.00024657,4]
[345621484,1734393033943,-500.0,0.00024657,4]
[345621485,1734393033952,-500.0,0.00024657,4]
[345621486,1734393033961,-500.0,0.00024657,4]
[345621487,1734393033971,-323.35,0.00024657,4]
[345621488,1734393033980,-500.0,0.00024657,4]
[345621489,1734393033989,-485.26774851,0.00024657,4]
[345621490,1734393033999,-500.0,0.00024657,4]
[345621491,1734393034010,-500.0,0.00024657,4]
[345621492,1734393034019,-500.0,0.00024657,4]
[345621493,1734393034028,-500.0,0.00024657,4]
[345621494,1734393034037,-500.0,0.00024657,4]
[345621495,1734393034046,-500.0,0.00024657,4]
[345621496,1734393034055,-500.0,0.00024657,4]
[345621497,1734393034064,-500.0,0.00024657,4]
[345621498,1734393034074,-500.0,0.00024657,4]
[345621499,1734393034083,-500.0,0.00024657,4]
[345621500,1734393034095,-500.0,0.00024657,4]
[345621501,1734393034104,-591.74,0.00024657,4]
[345621502,1734393034114,-500.0,0.00024657,4]
[345621503,1734393034123,-500.0,0.00024657,4]
[345621504,1734393034133,-500.0,0.00024657,4]
[345621505,1734393034142,-500.0,0.00024657,4]
[345621506,1734393034151,-500.0,0.00024657,4]
[345621507,1734393034161,-500.0,0.00024657,4]
[345621508,1734393034170,-500.0,0.00024657,4]
[345621509,1734393034179,-500.0,0.00024657,4]
[345621510,1734393034189,-500.0,0.00024657,4]
[345621511,1734393034198,-631.05,0.00024657,2]
[345621512,1734393034207,-500.0,0.00024657,4]
[345621513,1734393034216,-500.0,0.00024657,4]
[345621514,1734393034226,-198.96,0.00024657,4]
[345621515,1734393034236,-500.0,0.00024657,4]
[345621516,1734393034245,-500.0,0.00024657,4]
[345621517,1734393034255,-590.09798169,0.00024657,4]
[345621518,1734393034264,-594.92,0.00024657,4]
[345621519,1734393034273,-500.0,0.00024657,4]
[345621520,1734393034282,-500.0,0.00024657,4]
[345621521,1734393034292,-500.0,0.00024657,4]
[345621522,1734393034301,-500.0,0.00024657,4]
[345621523,1734393034310,-1015.71,0.00024657,4]
[345621524,1734393034319,-1015.71,0.00024657,4]
[345621525,1734393034328,-500.0,0.00024657,4]
[345621526,1734393034337,-500.0,0.00024657,4]
[345621527,1734393034348,-500.0,0.00024657,4]
[345621528,1734393034357,-500.0,0.00024657,4]
[345621529,1734393034366,-500.0,0.00024657,4]
[345621530,1734393034375,-173.40676984,0.00024657,4]
[345621531,1734393034385,-500.0,0.00024657,4]
[345621532,1734393034395,-500.0,0.00024657,4]
[345621533,1734393034404,-500.0,0.00024657,4]
[345621534,1734393034413,-192.97449648,0.00024657,4]
[345621535,1734393034422,-500.0,0.00024657,4]
[345621536,1734393034433,-500.0,0.00024657,4]
[345621537,1734393034442,-500.0,0.00024657,4]
[345621538,1734393034451,-500.0,0.00024657,4]
[345621539,1734393034460,-500.0,0.00024657,4]
[345621540,1734393034469,-500.0,0.00024657,4]
[345621541,1734393034479,-500.0,0.00024657,4]
[345621542,1734393034487,-500.0,0.00024657,4]
[345621543,1734393034497,-500.0,0.00024657,4]
[345621544,1734393034506,-500.0,0.00024657,4]
[345621545,1734393034515,-500.0,0.00024657,2]
[345621546,1734393034524,-500.0,0.00024657,4]
[345621547,1734393034534,-500.0,0.00024657,4]
[345621548,1734393034543,-500.0,0.00024657,4]
[345621549,1734393034552,-510.12689121,0.00024657,4]
[345621550,1734393034564,-500.0,0.00024657,4]
[345621551,1734393034573,-500.0,0.00024657,4]
[345621552,1734393034582,-241.02,0.00024657,4]
[345621553,1734393034594,-500.0,0.00024657,4]
[345621554,1734393034604,-500.0,0.00024657,4]
[345621555,1734393034613,-500.0,0.00024657,4]
[345621556,1734393034623,-500.0,0.00024657,4]
[345621557,1734393034632,-500.0,0.00024657,4]
[345621558,1734393034643,-500.0,0.00024657,4]
[345621559,1734393034653,-500.0,0.00024657,4]
[345621560,1734393034662,-380.05470931,0.00024657,4]
[345621561,1734393034672,-500.0,0.00024657,4]
[345621562,1734393034681,-500.0,0.00024657,4]
[345621563,1734393034690,-500.0,0.00024657,4]
[345621564,1734393034700,-500.0,0.00024657,4]
[345621565,1734393034709,-500.0,0.00024657,4]
[345621566,1734393034719,-500.0,0.00024657,4]
[345621567,1734393034728,-500.0,0.00024657,4]
[345621568,1734393034738,-500.0,0.00024657,4]
[345621569,1734393034747,-500.0,0.00024657,4]
[345621570,1734393034757,-500.0,0.00024657,4]
[345621571,1734393034766,-500.0,0.00024657,4]
[345621572,1734393034776,-500.0,0.00024657,4]
[345621573,1734393034785,-639.53,0.00024657,4]
[345621574,1734393034794,-500.0,0.00024657,4]
[345621575,1734393034804,-500.0,0.00024657,4]
[345621576,1734393034814,-500.0,0.00024657,4]
[345621577,1734393034823,-500.0,0.00024657,4]
[345621578,1734393034832,-500.0,0.00024657,4]
[345621579,1734393034843,-500.0,0.00024657,4]
[345621580,1734393034852,-312.51784375,0.00024657,4]
[345621581,1734393034862,-500.0,0.00024657,4]
[345621582,1734393034871,-500.0,0.00024657,4]
[345621583,1734393034881,-500.0,0.00024657,4]
[345621584,1734393034891,-522.07227372,0.00024657,4]
[345621585,1734393034900,-500.0,0.00024657,4]
[345621586,1734393034910,-500.0,0.00024657,4]
[345621587,1734393034919,-500.0,0.00024657,4]
[345621588,1734393034929,-500.0,0.00024657,4]
[345621589,1734393034938,-500.0,0.00024657,4]
[345621590,1734393034947,-500.0,0.00024657,4]
[345621591,1734393034957,-500.0,0.00024657,4]
[345621592,1734393034966,-500.0,0.00024657,4]
[345621593,1734393034976,-298.78277955,0.00024657,4]
[345621594,1734393034985,-500.0,0.00024657,4]
[345621595,1734393034994,-500.0,0.00024657,4]
[345621596,1734393035003,-500.0,0.00024657,4]
[345621597,1734393035013,-500.0,0.00024657,4]
[345621598,1734393035023,-500.0,0.00024657,4]
[345621599,1734393035032,-500.0,0.00024657,4]
[345621600,1734393035041,-587.45,0.00024657,4]
[345621601,1734393035051,-500.0,0.00024657,4]
[345621602,1734393035060,-500.0,0.00024657,4]
[345621603,1734393035070,-500.0,0.00024657,4]
[345621604,1734393035079,-500.0,0.00024657,4]
[345621605,1734393035088,-500.0,0.00024657,4]
[345621606,1734393035101,-500.0,0.00024657,4]
[345621607,1734393035110,-500.0,0.00024657,4]
[345621608,1734393035119,-500.0,0.00024657,4]
[345621609,1734393035128,-500.0,0.00024657,4]
[345621610,1734393035137,-500.0,0.00024657,4]
[345621611,1734393035146,-500.0,0.00024657,4]
[345621612,1734393035156,-532.61211922,0.00024657,4]
[345621613,1734393035165,-500.0,0.00024657,4]
[345621614,1734393035175,-500.0,0.00024657,4]
[345621615,1734393035186,-500.0,0.00024657,4]
[345621616,1734393035196,-500.0,0.00024657,4]
[345621617,1734393035206,-500.0,0.00024657,4]
[345621618,1734393035215,-500.0,0.00024657,4]
[345621619,1734393035226,-500.0,0.00024657,4]
[345621620,1734393035235,-500.0,0.00024657,4]
[345621621,1734393035245,-500.0,0.00024657,4]
[345621622,1734393035255,-500.0,0.00024657,4]
[345621623,1734393035264,-500.0,0.00024657,4]
[345621624,1734393035275,-500.0,0.00024657,4]
[345621625,1734393035286,-500.0,0.00024657,4]
[345621626,1734393035296,-500.0,0.00024657,4]
[345621627,1734393035307,-500.0,0.00024657,4]
[345621628,1734393035318,-500.0,0.00024657,4]
[345621629,1734393035329,-500.0,0.00024657,4]
[345621630,1734393035340,-500.0,0.00024657,4]
[345621631,1734393035351,-158.729548,0.00024657,4]
[345621632,1734393035360,-500.0,0.00024657,4]
[345621633,1734393035370,-500.0,0.00024657,4]
[345621634,1734393035379,-405.85,0.00024657,4]
[345621635,1734393035388,-154.103086,0.00024657,4]
[345621636,1734393035399,-500.0,0.00024657,4]
[345621637,1734393035408,-500.0,0.00024657,4]
[345621638,1734393035417,-500.0,0.00024657,4]
[345621639,1734393035426,-500.0,0.00024657,4]
[345621640,1734393035435,-627.55093909,0.00024657,4]
[345621641,1734393035445,-500.0,0.00024657,4]
[345621642,1734393035454,-252.53758206,0.00024657,4]
[345621646,1734393038023,-409.5,0.00023584,15]
[345621647,1734393038032,-208.09416041,0.00024657,4]
[345621649,1734393038175,-545.16,0.00024657,4]
[345621650,1734393038185,-429.24583961,0.00024657,4]
[345621651,1734393038197,-70.75416039,0.00024657,4]
[345621652,1734393038206,-500.0,0.00024657,4]
[345621653,1734393038215,-500.0,0.00024657,4]
[345621654,1734393038224,-667.26,0.00024657,4]
[345621655,1734393038234,-667.26,0.00024657,4]
[345621656,1734393038244,-500.0,0.00024657,4]
[345621657,1734393038253,-667.26,0.00024657,4]
[345621658,1734393038262,-500.0,0.00024657,4]
[345621659,1734393038271,-575.68,0.00024657,4]
[345621660,1734393038280,-500.0,0.00024657,4]
[345621661,1734393038290,-500.0,0.00024657,4]
[345621662,1734393038299,-500.0,0.00024657,4]
[345621663,1734393038308,-500.0,0.00024657,4]
[345621664,1734393038317,-500.0,0.00024657,4]
[345621665,1734393038326,-500.0,0.00024657,4]
[345621666,1734393038335,-649.37699846,0.00024657,4]
[345621667,1734393038345,-532.91,0.00024657,4]
[345621668,1734393038355,-532.91,0.00024657,4]
[345621669,1734393038365,-500.0,0.00024657,4]
[345621670,1734393038375,-500.0,0.00024657,4]
[345621671,1734393038385,-500.0,0.00024657,4]
[345621672,1734393038394,-500.0,0.00024657,4]
[345621673,1734393038403,-389.69320033,0.00024657,4]
[345621674,1734393038412,-500.0,0.00024657,4]
[345621675,1734393038421,-500.0,0.00024657,4]
[345621676,1734393038431,-500.0,0.00024657,4]
[345621677,1734393038440,-500.0,0.00024657,4]
[345621678,1734393038449,-497.48,0.00024657,4]
[345621679,1734393038459,-500.0,0.00024657,4]
[345621680,1734393038468,-501.99034457,0.00024657,4]
[345621681,1734393038477,-500.0,0.00024657,4]
[345621682,1734393038486,-206.37,0.00024657,4]
[345621683,1734393038495,-500.0,0.00024657,4]
[345621684,1734393038504,-786.63,0.00024657,4]
[345621685,1734393038514,-786.63,0.00024657,4]
[345621686,1734393038523,-500.0,0.00024657,4]
[345621687,1734393038532,-500.0,0.00024657,4]
[345621688,1734393038541,-504.32477113,0.00024657,4]
[345621689,1734393038550,-637.86244229,0.00024657,4]
[345621690,1734393038559,-500.0,0.00024657,4]
[345621691,1734393038572,-500.0,0.00024657,4]
[345621692,1734393038581,-500.0,0.00024657,4]
[345621693,1734393038590,-500.0,0.00024657,4]
[345621694,1734393038601,-500.0,0.00024657,4]
[345621695,1734393038611,-500.0,0.00024657,4]
[345621696,1734393038619,-500.0,0.00024657,4]
[345621697,1734393038629,-500.0,0.00024657,4]
[345621698,1734393038638,-500.0,0.00024657,4]
[345621699,1734393038648,-500.0,0.00024657,4]
[345621700,1734393038657,-500.0,0.00024657,4]
[345621701,1734393038667,-500.0,0.00024657,4]
[345621702,1734393038676,-333.79091637,0.00024657,4]
[345621703,1734393038685,-500.0,0.00024657,4]
[345621704,1734393038694,-500.0,0.00024657,4]
[345621705,1734393038703,-1175.49,0.00024657,4]
[345621706,1734393038712,-1175.49,0.00024657,4]
[345621707,1734393038722,-1175.49,0.00024657,4]
[345621708,1734393038731,-500.0,0.00024657,4]
[345621709,1734393038740,-556.63603995,0.00024657,4]
[345621710,1734393038749,-500.0,0.00024657,4]
[345621711,1734393038758,-500.0,0.00024657,4]
[345621712,1734393038767,-500.0,0.00024657,4]
[345621713,1734393038777,-500.0,0.00024657,4]
[345621714,1734393038786,-500.0,0.00024657,4]
[345621715,1734393038795,-500.0,0.00024657,4]
[345621716,1734393038804,-500.0,0.00024657,4]
[345621717,1734393038813,-500.0,0.00024657,4]
[345621718,1734393038823,-500.0,0.00024657,4]
[345621719,1734393038832,-500.0,0.00024657,4]
[345621720,1734393038842,-500.0,0.00024657,4]
[345621721,1734393038853,-500.0,0.00024657,4]
[345621722,1734393038862,-500.0,0.00024657,4]
[345621723,1734393038871,-500.0,0.00024657,4]
[345621724,1734393038880,-500.0,0.00024657,4]
[345621725,1734393038890,-500.0,0.00024657,4]
[345621726,1734393038899,-500.0,0.00024657,4]
[345621727,1734393038908,-500.0,0.00024657,4]
[345621728,1734393038917,-2903.92,0.00024657,4]
[345621729,1734393038927,-2903.92,0.00024657,4]
[345621730,1734393038936,-2903.92,0.00024657,4]
[345621731,1734393038945,-1492.82,0.00024657,4]
[345621732,1734393038955,-500.0,0.00024657,4]
[345621733,1734393038964,-500.0,0.00024657,4]
[345621734,1734393038973,-1492.82,0.00024657,4]
[345621735,1734393038982,-500.0,0.00024657,4]
[345621736,1734393038991,-500.0,0.00024657,4]
[345621737,1734393039000,-500.0,0.00024657,4]
[345621738,1734393039009,-1435.85,0.00024657,4]
[345621739,1734393039018,-500.0,0.00024657,4]
[345621740,1734393039027,-1435.85,0.00024657,4]
[345621741,1734393039036,-500.0,0.00024657,4]
[345621742,1734393039045,-1435.85,0.00024657,4]
[345621743,1734393039054,-512.36416075,0.00024657,4]
[345621744,1734393039063,-500.0,0.00024657,4]
[345621745,1734393039072,-500.0,0.00024657,4]
[345621746,1734393039081,-500.0,0.00024657,4]
[345621747,1734393039090,-500.0,0.00024657,4]
[345621748,1734393039100,-500.0,0.00024657,4]
[345621749,1734393039110,-500.0,0.00024657,4]
[345621750,1734393039119,-500.0,0.00024657,4]
[345621751,1734393039128,-500.0,0.00024657,4]
[345621752,1734393039138,-677.93,0.00024657,4]
[345621753,1734393039147,-677.93,0.00024657,4]
[345621754,1734393039156,-500.0,0.00024657,4]
[345621755,1734393039165,-2434.48,0.00024657,4]